bitfinex-derivatives/quotes_BTCF0:USTF0_20241104
["timestamp","ask_amount","ask_price","bid_price","bid_amount"]
[1730751319856,0.1227148,67736.0,67735.0,0.435665]
[1730751323664,0.15125187,67736.0,67735.0,0.435665]
[1730751325158,0.10440007,67736.0,67735.0,0.435665]
[1730751326467,0.002,67736.0,67735.0,0.51947743]
[1730751326766,0.002,67736.0,67735.0,0.54179137]
[1730751326964,0.15967543,67736.0,67735.0,0.54179137]
[1730751327169,0.15967543,67736.0,67735.0,0.46792637]
[1730751329170,0.15967543,67736.0,67735.0,0.4679544]
[1730751334868,0.22439578,67736.0,67735.0,0.3618]
[1730751335283,0.75108849,67736.0,67725.0,0.0069]
[1730751335478,0.75108849,67736.0,67722.0,0.3608]
[1730751335479,0.073878,67723.0,67722.0,0.3608]
[1730751335662,0.15769043,67723.0,67722.0,0.3608]
[1730751336056,0.08381243,67723.0,67717.0,0.106583]
[1730751336363,0.15769543,67718.0,67717.0,0.106583]
[1730751337770,0.08381243,67718.0,67717.0,0.0327]
[1730751338470,0.08481243,67718.0,67717.0,0.0327]
[1730751340271,0.12992041,67718.0,67717.0,0.0327]
[1730751341772,0.12992041,67718.0,67717.0,1.5327]
[1730751344662,0.001,67718.0,67717.0,1.5327]
[1730751346964,0.001,67718.0,67717.0,1.606584]
[1730751347983,0.10747321,67721.0,67717.0,1.91295217]
[1730751348278,0.10747321,67721.0,67719.0,0.073882]
[1730751348279,0.08381243,67720.0,67719.0,0.073882]
[1730751348480,0.08381243,67720.0,67719.0,0.30697064]
[1730751349174,0.15769343,67720.0,67719.0,0.30697064]
[1730751349564,0.15869343,67720.0,67719.0,0.30697064]
[1730751349972,0.15969343,67720.0,67719.0,0.073882]
[1730751351177,0.15969343,67720.0,67719.0,0.434682]
[1730751354471,0.15869343,67720.0,67719.0,0.434682]
[1730751354672,0.15969343,67720.0,67719.0,0.435682]
[1730751355184,0.15869343,67720.0,67719.0,0.434682]
[1730751355483,0.15869343,67720.0,67719.0,0.435682]
[1730751355786,0.15769343,67720.0,67719.0,0.435682]
[1730751356084,0.16569343,67720.0,67719.0,0.435682]
[1730751357083,0.31529343,67720.0,67719.0,0.50942264]
[1730751358479,0.31529343,67720.0,67719.0,0.6151941]
[1730751358673,0.31529343,67720.0,67719.0,0.54145346]
[1730751359780,0.31529343,67720.0,67719.0,0.001]
[1730751359977,0.31529343,67720.0,67719.0,0.07478588]
[1730751360181,0.31529343,67720.0,67719.0,0.001]
[1730751361085,0.31529343,67720.0,67719.0,0.07478588]
[1730751361275,0.31529343,67720.0,67719.0,0.001]
[1730751362284,0.31529343,67720.0,67719.0,0.07478588]
[1730751362490,0.39910586,67720.0,67719.0,0.07478588]
[1730751362792,0.31529343,67720.0,67719.0,0.001]
[1730751365078,0.231481,67720.0,67719.0,0.23391525]
[1730751365278,0.31529343,67720.0,67719.0,0.23391525]
[1730751365679,0.31529343,67720.0,67719.0,0.10722913]
[1730751367390,0.39910586,67720.0,67719.0,0.10722913]
[1730751368585,1.35170989,67720.0,67719.0,0.05908684]
[1730751368796,1.42559089,67720.0,67719.0,0.05908684]
[1730751369087,1.35170989,67720.0,67719.0,0.05908684]
[1730751369283,1.42559089,67720.0,67719.0,0.05908684]
[1730751369480,0.073882,67719.0,67718.0,0.05908684]
[1730751369793,0.073883,67718.0,67717.0,0.05908684]
[1730751370001,0.35362786,67718.0,67717.0,0.05908684]
[1730751370296,1.01757207,67718.0,67717.0,0.05908684]
[1730751370588,0.073884,67717.0,67716.0,0.05908684]
[1730751370791,0.07389,67712.0,67711.0,0.07385639]
[1730751370994,0.15770243,67712.0,67711.0,0.07385639]
[1730751371388,0.08381243,67712.0,67710.0,0.07385639]
[1730751371691,0.15770343,67711.0,67710.0,0.07385639]
[1730751371890,0.15770343,67711.0,67705.0,0.08863425]
[1730751372094,0.0739,67703.0,67702.0,0.0332]
[1730751373596,0.0809,67703.0,67702.0,0.0332]
[1730751374587,0.0819,67703.0,67702.0,0.0332]
[1730751375485,0.008,67703.0,67702.0,0.107101]
[1730751375798,0.073893,67709.0,67708.0,0.073893]
[1730751375987,0.073896,67706.0,67705.0,0.3608]
[1730751376188,0.15770843,67706.0,67705.0,0.3608]
[1730751377399,0.15770843,67706.0,67705.0,0.434697]
[1730751377893,0.15770843,67706.0,67705.0,0.435697]
[1730751378097,0.15770843,67706.0,67705.0,0.3618]
[1730751378291,0.15770843,67706.0,67705.0,0.001]
[1730751379395,0.16570843,67706.0,67705.0,0.002]
[1730751379906,0.20913846,67706.0,67705.0,0.002]
[1730751380096,0.13524246,67706.0,67705.0,0.002]
[1730751380491,0.13524246,67706.0,67705.0,0.09046321]
[1730751380694,0.13524246,67706.0,67705.0,0.002]
[1730751380905,0.20913846,67706.0,67705.0,0.002]
[1730751383602,0.20913846,67706.0,67705.0,0.10705134]
[1730751383806,0.20913846,67706.0,67705.0,0.23226862]
[1730751384603,0.15736885,67706.0,67705.0,0.23226862]
[1730751385191,0.15736885,67706.0,67705.0,0.23144218]
[1730751385899,0.20226845,67706.0,67705.0,0.23144218]
[1730751387104,0.20226845,67706.0,67705.0,0.002]
[1730751388304,0.20226845,67706.0,67705.0,0.046249]
[1730751389095,0.20226845,67706.0,67705.0,0.002]
[1730751389906,0.20226845,67706.0,67705.0,0.04627397]
[1730751390210,0.20226845,67706.0,67705.0,0.002]
[1730751390625,0.72916088,67706.0,67700.0,0.05434197]
[1730751390914,0.72916088,67706.0,67675.0,0.10326226]
[1730751390915,0.073931,67674.0,67673.0,0.3677]
[1730751391207,0.073931,67674.0,67658.0,0.0034]
[1730751391208,0.74461243,67674.0,67651.0,0.3608]
[1730751391424,0.07394,67667.0,67651.0,0.3608]
[1730751391707,0.3608,67652.0,67637.0,0.3608]
[1730751391913,0.073965,67643.0,67640.0,0.073968]
[1730751392215,0.073965,67643.0,67626.0,0.3608]
[1730751392216,0.18195423,67652.0,67636.0,0.073973]
[1730751392504,0.112,67650.0,67635.0,0.3608]
[1730751392708,0.15778543,67636.0,67635.0,0.3608]
[1730751393294,0.19581243,67638.0,67635.0,0.3608]
[1730751393295,0.08381243,67638.0,67635.0,0.3608]
[1730751393499,0.08381243,67638.0,67635.0,0.434774]
[1730751393703,0.12794891,67636.0,67635.0,0.434774]
[1730751394301,0.12894891,67636.0,67635.0,0.434774]
[1730751394901,0.001,67636.0,67635.0,0.434774]
[1730751395316,0.04388853,67639.0,67635.0,0.3658]
[1730751395608,0.12794891,67642.0,67640.0,0.073968]
[1730751395811,0.16094677,67733.0,67646.0,0.073962]
[1730751395812,0.12794891,67647.0,67646.0,0.073962]
[1730751396002,0.0079,67650.0,67641.0,0.3608]
[1730751396203,0.12794891,67646.0,67641.0,0.3608]
[1730751396413,0.12794891,67646.0,67645.0,0.073963]
[1730751396806,0.35112595,67646.0,67645.0,0.073963]
[1730751397212,0.12794891,67646.0,67645.0,0.073963]
[1730751397611,0.12894891,67646.0,67645.0,0.073963]
[1730751398317,0.12894891,67646.0,67645.0,1.573963]
[1730751398810,0.12994891,67646.0,67645.0,1.578963]
[1730751400410,0.17197513,67652.0,67645.0,1.505]
[1730751400616,0.20190391,67652.0,67649.0,0.073958]
[1730751400815,0.2215176,67651.0,67649.0,0.073958]
[1730751401205,0.2215176,67651.0,67646.0,0.0313]
[1730751401406,0.2215176,67651.0,67650.0,0.073957]
[1730751401602,0.04461321,67654.0,67653.0,0.073954]
[1730751401802,0.20189991,67656.0,67650.0,0.3608]
[1730751402017,0.12794891,67656.0,67655.0,0.073952]
[1730751402219,0.07395,67658.0,67656.0,0.073951]
[1730751402412,0.04763545,67657.0,67656.0,0.073951]
[1730751402614,0.0022186,67657.0,67656.0,0.073951]
[1730751403814,0.0034,67664.0,67656.0,0.073951]
[1730751403815,0.0034,67664.0,67663.0,0.073943]
[1730751404022,0.073943,67663.0,67662.0,0.3608]
[1730751404222,0.12794891,67667.0,67658.0,0.073948]
[1730751404516,0.12794891,67667.0,67656.0,0.3608]
[1730751404517,0.12794891,67662.0,67660.0,0.073947]
[1730751404716,0.12794891,67662.0,67660.0,0.073946]
[1730751405026,0.073945,67661.0,67660.0,0.073946]
[1730751405423,0.12794891,67662.0,67660.0,0.073946]
[1730751405717,0.12794891,67662.0,67656.0,0.3658]
[1730751405928,0.073949,67659.0,67656.0,0.3658]
[1730751406114,0.073949,67659.0,67656.0,0.439751]
[1730751406314,0.073949,67659.0,67656.0,0.434751]
[1730751406616,0.12794891,67657.0,67647.0,0.3608]
[1730751406922,0.12794891,67660.0,67647.0,0.3608]
[1730751406923,0.12794891,67653.0,67647.0,0.3608]
[1730751407223,0.12794891,67653.0,67652.0,0.073955]
[1730751407623,0.07395,67657.0,67656.0,0.073951]
[1730751407931,0.073959,67649.0,67648.0,0.073959]
[1730751408110,0.12794891,67649.0,67648.0,0.073959]
[1730751408417,0.34975621,67649.0,67648.0,0.073959]
[1730751409221,0.42371421,67649.0,67648.0,0.073959]
[1730751410122,0.37289838,67649.0,67648.0,0.079959]
[1730751410331,0.2967653,67649.0,67648.0,0.079959]
[1730751410916,0.002,67649.0,67648.0,0.081959]
[1730751411119,0.002,67649.0,67648.0,0.442759]
[1730751412624,0.075958,67649.0,67648.0,0.442759]
[1730751413225,0.002,67649.0,67648.0,0.442759]
[1730751419024,0.3608,67657.0,67656.0,0.073951]
[1730751419224,0.00221764,67681.0,67680.0,0.073925]
[1730751419428,0.48874891,67707.0,67681.0,0.073923]
[1730751419632,0.073909,67694.0,67693.0,0.3608]
[1730751420025,0.29419621,67694.0,67693.0,0.3608]
[1730751420226,0.22028721,67694.0,67693.0,0.3608]
[1730751420631,0.22066231,67700.0,67693.0,0.3608]
[1730751420830,0.22066231,67694.0,67693.0,0.3608]
[1730751421227,0.073909,67695.0,67693.0,0.3608]
[1730751421428,0.073909,67694.0,67693.0,0.3608]
[1730751421637,0.12794891,67696.0,67693.0,0.3608]
[1730751421934,0.23197661,67694.0,67693.0,0.43571]
[1730751422134,0.011,67694.0,67693.0,0.43571]
[1730751422330,0.29980426,67694.0,67693.0,0.3608]
[1730751422731,0.29680426,67694.0,67693.0,0.3608]
[1730751423137,0.22289526,67694.0,67693.0,0.43471]
[1730751423938,0.22689526,67694.0,67693.0,0.43471]
[1730751424336,0.00212001,67707.0,67706.0,0.073896]
[1730751424538,0.3608,67718.0,67706.0,0.3608]
[1730751424539,0.073888,67714.0,67706.0,0.3608]
[1730751424730,0.073886,67716.0,67706.0,0.3608]
[1730751424931,0.22199702,67717.0,67706.0,0.3608]
[1730751425134,0.3608,67711.0,67702.0,0.0739]
[1730751425341,0.48168797,67718.0,67702.0,0.0739]
[1730751425342,0.40776497,67718.0,67710.0,0.073892]
[1730751425529,0.22215581,67716.0,67715.0,0.073886]
[1730751425731,0.16779352,67716.0,67715.0,0.073886]
[1730751425937,0.073888,67714.0,67711.0,0.07389]
[1730751426137,0.3608,67712.0,67711.0,0.073891]
[1730751426444,0.47558158,67712.0,67711.0,0.073891]
[1730751426634,0.11478158,67712.0,67711.0,0.073891]
[1730751427035,0.14560649,67712.0,67711.0,0.073891]
[1730751427337,0.11478158,67712.0,67711.0,0.073891]
[1730751428033,0.11478158,67712.0,67711.0,0.075891]
[1730751428234,0.11578158,67712.0,67711.0,0.084891]
[1730751428931,0.43121758,67712.0,67711.0,0.084891]
[1730751430341,0.42736525,67712.0,67711.0,0.084891]
[1730751430733,0.39117097,67712.0,67711.0,0.084891]
[1730751432237,0.3618,67712.0,67711.0,0.084891]
[1730751438051,0.43569,67712.0,67711.0,0.011]
[1730751438841,0.43569,67712.0,67711.0,0.084891]
[1730751440356,0.43569,67712.0,67711.0,0.011]
[1730751442052,0.43569,67712.0,67711.0,0.084891]
[1730751443057,0.3618,67712.0,67711.0,0.084891]
[1730751444446,0.3618,67712.0,67711.0,0.05135794]
[1730751445759,0.001,67712.0,67711.0,0.05135794]
[1730751445947,0.001,67712.0,67711.0,0.49439794]
[1730751450747,0.001,67712.0,67711.0,1.99439794]
[1730751451157,0.001,67712.0,67711.0,1.66303794]
[1730751451654,0.19365094,67720.0,67719.0,0.073882]
[1730751451655,0.1496,67720.0,67719.0,0.073882]
[1730751453348,0.1556,67720.0,67719.0,0.074882]
[1730751455058,0.1556,67720.0,67719.0,0.435682]
[1730751455754,0.1556,67720.0,67719.0,0.3618]
[1730751456357,0.1556,67720.0,67719.0,0.001]
[1730751456662,0.1556,67720.0,67719.0,0.3618]
[1730751457650,0.1556,67720.0,67719.0,0.48974891]
[1730751460162,0.1556,67720.0,67719.0,0.12894891]
[1730751460356,0.1556,67720.0,67719.0,0.48974891]
[1730751460767,0.1556,67720.0,67719.0,0.3618]
[1730751462572,0.26701676,67720.0,67719.0,0.3618]
[1730751462951,0.26701676,67720.0,67719.0,0.24349866]
[1730751463265,0.26701425,67720.0,67719.0,0.24349866]
[1730751463454,0.4134154,67720.0,67719.0,0.24349866]
[1730751464261,0.26701425,67720.0,67719.0,0.24349866]
[1730751466162,0.26701425,67720.0,67716.0,0.11164]
[1730751466353,0.11141425,67719.0,67716.0,0.11164]
[1730751466557,0.11141425,67718.0,67716.0,0.11164]
[1730751466765,0.11141425,67717.0,67716.0,0.185525]
[1730751466969,0.1556,67720.0,67719.0,0.073882]
[1730751467269,0.1556,67720.0,67719.0,0.185522]
[1730751467571,0.26004174,67720.0,67719.0,0.185522]
[1730751467756,0.26004174,67720.0,67719.0,0.31347091]
[1730751468258,0.26604174,67720.0,67719.0,0.31447091]
[1730751469363,0.1556,67720.0,67719.0,0.41707943]
[1730751469569,0.1556,67720.0,67719.0,0.49081933]
[1730751470267,0.229481,67720.0,67719.0,0.17749052]
[1730751470454,0.229481,67720.0,67719.0,0.36288721]
[1730751470658,0.229481,67720.0,67719.0,0.26027869]
[1730751470860,0.229481,67720.0,67719.0,0.36280642]
[1730751471060,0.590281,67720.0,67719.0,0.001]
[1730751471262,0.590281,67720.0,67714.0,0.07375669]
[1730751471463,0.073884,67717.0,67716.0,0.05902776]
[1730751471666,0.073886,67715.0,67714.0,0.00912776]
[1730751472360,0.073889,67713.0,67712.0,0.07389]
[1730751473764,0.074889,67713.0,67712.0,0.08089]
[1730751474267,0.074889,67713.0,67712.0,0.007]
[1730751474467,0.074889,67713.0,67712.0,0.08089]
[1730751474668,0.074889,67713.0,67712.0,0.08189]
[1730751477362,0.074889,67713.0,67712.0,0.18420418]
[1730751477774,0.11831168,67713.0,67712.0,0.18420418]
[1730751478458,0.04442268,67713.0,67712.0,0.31215309]
[1730751478772,0.001,67713.0,67712.0,0.31215309]
[1730751480372,0.001,67713.0,67712.0,0.31184265]
[1730751481572,0.0069,67733.0,67717.0,0.073884]
[1730751481770,0.0069,67733.0,67732.0,0.073868]
[1730751481771,0.0103,67733.0,67732.0,0.073868]
[1730751481974,0.0317,67740.0,67732.0,0.073868]
[1730751481975,0.0317,67740.0,67739.0,0.07386]
[1730751482175,0.0317,67740.0,67739.0,0.17586374]
[1730751482677,0.0317,67740.0,67739.0,1.67586374]
[1730751483667,0.0357,67740.0,67739.0,1.67586374]
[1730751484369,0.06691035,67740.0,67739.0,1.57386]
[1730751484768,0.03521035,67740.0,67739.0,1.93466]
[1730751485166,0.3608,67752.0,67739.0,2.37754]
[1730751485473,0.3608,67752.0,67750.0,0.073848]
[1730751485474,0.06818752,67751.0,67750.0,0.073848]
[1730751486373,0.031553,67751.0,67750.0,0.073848]
[1730751486880,0.06820637,67751.0,67750.0,0.073848]
[1730751487380,0.031553,67751.0,67750.0,0.073848]
[1730751487761,0.014,67752.0,67751.0,0.073847]
[1730751487973,0.05065182,67752.0,67751.0,0.073847]
[1730751488171,0.005,67752.0,67751.0,0.20179591]
[1730751489274,0.014,67752.0,67751.0,0.64559591]
[1730751489880,0.014,67752.0,67751.0,0.65592591]
[1730751490076,0.0317,67765.0,67759.0,0.073838]
[1730751490271,0.39283393,67760.0,67759.0,0.073838]
[1730751490668,0.39283393,67760.0,67759.0,1.573838]
[1730751490869,0.39294693,67760.0,67759.0,1.573838]
[1730751491067,0.3608,67760.0,67759.0,1.573838]
[1730751491978,0.3768,67760.0,67759.0,1.575838]
[1730751494989,0.3768,67760.0,67759.0,0.075838]
[1730751495576,0.016,67760.0,67759.0,0.075838]
[1730751498285,0.014,67760.0,67759.0,0.074838]
[1730751498584,0.02,67760.0,67759.0,0.518598]
[1730751498783,0.02,67760.0,67759.0,0.517598]
[1730751498981,0.02,67760.0,67759.0,0.518598]
[1730751498982,0.012,67760.0,67759.0,0.518598]
[1730751499380,0.012,67760.0,67759.0,0.5618379]
[1730751502079,0.0103,67771.0,67770.0,0.073826]
[1730751502275,0.0305,67774.0,67770.0,0.20177491]
[1730751503484,0.006,67771.0,67770.0,0.20277491]
[1730751504384,0.006,67771.0,67770.0,0.20377491]
[1730751504788,0.006,67771.0,67770.0,0.20277491]
[1730751504999,0.0305,67774.0,67770.0,0.20277491]
[1730751505289,0.0305,67774.0,67773.0,0.073823]
[1730751507288,0.104322,67774.0,67773.0,0.074823]
[1730751508289,0.0305,67774.0,67773.0,0.074823]
[1730751508494,0.0305,67774.0,67773.0,0.075823]
[1730751509498,0.104322,67774.0,67773.0,0.075823]
[1730751509892,0.0074,67793.0,67774.0,0.44264]
[1730751510099,0.0103,67786.0,67785.0,0.07381]
[1730751510392,0.0301,67793.0,67785.0,0.31311891]
[1730751510691,0.0301,67793.0,67786.0,1.5]
[1730751510893,0.103902,67793.0,67792.0,0.073802]
[1730751511095,0.0301,67793.0,67792.0,0.073802]
[1730751512699,0.103901,67793.0,67792.0,0.073802]
[1730751512888,0.464701,67793.0,67792.0,0.073802]
[1730751513693,0.3909,67793.0,67792.0,0.073802]
[1730751513889,0.3909,67793.0,67792.0,0.001]
[1730751514097,0.073811,67786.0,67785.0,0.073808]
[1730751514298,0.073817,67779.0,67778.0,0.07602983]
[1730751514492,0.434617,67779.0,67778.0,0.07602983]
[1730751514692,0.48874891,67787.0,67778.0,0.07602983]
[1730751514889,0.48874891,67787.0,67783.0,0.073809]
[1730751514890,0.073812,67784.0,67783.0,0.073809]
[1730751515087,0.073812,67784.0,67778.0,0.073817]
[1730751515088,0.11231003,67784.0,67778.0,0.073817]
[1730751515405,0.16993208,67783.0,67774.0,0.07086859]
[1730751515596,0.16076959,67776.0,67775.0,0.07382]
[1730751515899,0.11706468,67776.0,67775.0,0.07382]
[1730751516099,0.26322287,67776.0,67775.0,0.07382]
[1730751516299,0.11706468,67776.0,67775.0,0.07382]
[1730751516695,0.14619681,67776.0,67775.0,0.07382]
[1730751516997,0.2300622,67776.0,67775.0,0.07382]
[1730751517203,0.11706468,67776.0,67775.0,0.07382]
[1730751517588,0.11706468,67776.0,67775.0,0.08582]
[1730751517786,0.11706468,67776.0,67775.0,0.09282]
[1730751519898,0.11237181,67776.0,67775.0,0.09282]
[1730751520899,0.06705352,67776.0,67775.0,0.09282]
[1730751521701,0.06705352,67776.0,67775.0,1.59282]
[1730751522109,0.0332,67779.0,67775.0,1.95362]
[1730751523203,0.0332,67779.0,67778.0,0.073818]
[1730751523802,0.0332,67779.0,67778.0,1.573818]
[1730751524499,0.0332,67779.0,67778.0,1.577818]
[1730751524901,0.0332,67779.0,67778.0,1.586818]
[1730751527107,0.107017,67779.0,67778.0,0.086818]
[1730751530519,0.21913504,67779.0,67778.0,0.086818]
[1730751530719,0.17381276,67779.0,67778.0,0.086818]
[1730751533323,0.17381276,67779.0,67778.0,1.586818]
[1730751533623,0.09999576,67779.0,67778.0,1.586818]
[1730751535228,0.06383722,67779.0,67778.0,1.586818]
[1730751538419,0.0332,67779.0,67778.0,1.586818]
[1730751545439,0.14559531,67779.0,67774.0,0.48874891]
[1730751545739,0.16535092,67778.0,67777.0,0.073819]
[1730751546033,0.11239531,67778.0,67777.0,0.073819]
[1730751546431,0.11239531,67778.0,67777.0,1.573819]
[1730751546627,0.16535092,67778.0,67777.0,1.573819]
[1730751547533,0.23916892,67778.0,67777.0,1.583819]
[1730751548126,0.16535092,67778.0,67777.0,1.583819]
[1730751548331,0.11239531,67778.0,67777.0,1.588819]
[1730751549332,0.11239531,67778.0,67777.0,1.6726012]
[1730751553642,0.0318,67781.0,67780.0,0.073816]
[1730751553855,0.13456738,67781.0,67777.0,1.589578]
[1730751554145,0.073818,67778.0,67777.0,1.588818]
[1730751554342,0.10267986,67778.0,67777.0,1.588818]
[1730751554841,0.10267986,67778.0,67777.0,1.583818]
[1730751555246,0.10267986,67778.0,67777.0,1.573818]
[1730751555547,0.10267986,67778.0,67777.0,1.578818]
[1730751556154,0.10267986,67778.0,67777.0,1.587818]
[1730751556155,0.10367986,67778.0,67777.0,1.587818]
[1730751556444,0.10367986,67778.0,67777.0,1.6716002]
[1730751557538,0.02986186,67778.0,67777.0,1.6716002]
[1730751557741,0.001,67778.0,67777.0,1.6716002]
[1730751558741,0.073804,67791.0,67777.0,1.6716002]
[1730751558742,0.0103,67790.0,67788.0,0.073807]
[1730751559044,0.3682,67801.0,67788.0,0.5183892]
[1730751559045,0.0324,67792.0,67788.0,0.5183892]
[1730751559241,0.0324,67792.0,67791.0,0.073804]
[1730751560344,0.0324,67792.0,67791.0,0.1575862]
[1730751560739,0.0364,67792.0,67791.0,0.1575862]
[1730751561236,0.0404,67792.0,67791.0,0.1585862]
[1730751561440,0.0404,67792.0,67791.0,0.20244048]
[1730751561646,0.008,67792.0,67791.0,0.20244048]
[1730751568747,0.008,67792.0,67788.0,0.433607]
[1730751568748,0.03724234,67792.0,67788.0,0.433607]
[1730751568943,0.11069761,67791.0,67790.0,0.073805]
[1730751569158,0.11069761,67791.0,67790.0,0.20144148]
[1730751570654,0.18750161,67791.0,67790.0,0.20144148]
[1730751571358,0.11369761,67791.0,67790.0,0.20144148]
[1730751571548,0.11797412,67791.0,67790.0,0.20244148]
[1730751571859,0.19177812,67791.0,67790.0,0.20244148]
[1730751572156,0.24472298,67791.0,67790.0,0.20244148]
[1730751572352,0.24472498,67791.0,67790.0,0.20244148]
[1730751573061,0.24472498,67791.0,67790.0,0.074805]
[1730751573453,0.24472498,67791.0,67790.0,0.04703796]
[1730751575655,0.35293863,67791.0,67790.0,0.001]
[1730751575853,0.35293863,67791.0,67783.0,0.073812]
[1730751575854,0.073811,67784.0,67783.0,0.073812]
[1730751576155,0.073811,67784.0,67777.0,1.50221297]
[1730751576156,0.073818,67778.0,67777.0,1.50221297]
[1730751576553,0.073818,67778.0,67777.0,0.00221297]
[1730751578356,0.073818,67778.0,67777.0,0.07603197]
[1730751578958,0.074818,67778.0,67777.0,0.08503197]
[1730751579154,0.435618,67778.0,67777.0,0.08503197]
[1730751579462,0.435618,67778.0,67777.0,0.09003197]
[1730751579754,0.434618,67778.0,67777.0,0.08103197]
[1730751579961,0.435618,67778.0,67777.0,0.08903197]
[1730751581060,0.47124637,67778.0,67777.0,0.08903197]
[1730751581265,0.47124637,67778.0,67777.0,0.08703197]
[1730751581452,0.435618,67778.0,67777.0,0.21466845]
[1730751583763,0.54562051,67778.0,67777.0,0.13822798]
[1730751584962,0.18482051,67778.0,67777.0,0.21204698]
[1730751586356,0.11100251,67778.0,67777.0,0.21204698]
[1730751588855,0.18482051,67778.0,67777.0,0.21204698]
[1730751590463,0.18481944,67778.0,67777.0,0.21204698]
[1730751590862,0.074818,67778.0,67777.0,0.21204698]
[1730751593383,0.074818,67778.0,67777.0,0.16819479]
[1730751595379,0.074818,67778.0,67777.0,0.0105915]
[1730751598873,0.13950165,67778.0,67777.0,0.0105915]
[1730751600476,0.13950165,67778.0,67777.0,0.0844105]
[1730751600686,0.13950165,67778.0,67777.0,0.0105915]
[1730751601589,0.54562909,67778.0,67777.0,0.0105915]
[1730751604207,0.91445156,67778.0,67765.0,0.073831]
[1730751604502,0.91445156,67778.0,67762.0,0.01033]
[1730751604503,0.073834,67763.0,67762.0,0.073835]
[1730751604713,0.10235742,67763.0,67762.0,0.073835]
[1730751605203,0.10235742,67763.0,67757.0,0.01033]
[1730751605204,0.4993233,67763.0,67757.0,0.01033]
[1730751605403,0.073839,67758.0,67757.0,0.084171]
[1730751605604,0.073839,67758.0,67757.0,0.073841]
[1730751605605,0.1385283,67758.0,67757.0,0.073841]
[1730751605804,0.436234,67763.0,67757.0,0.073841]
[1730751605805,0.32544927,67763.0,67757.0,0.30631547]
[1730751605994,0.32544927,67763.0,67762.0,0.073835]
[1730751605995,0.32384927,67763.0,67762.0,0.073835]
[1730751606195,0.32384927,67763.0,67762.0,0.17989272]
[1730751606500,0.39768327,67763.0,67762.0,0.17989272]
[1730751607205,0.40268327,67763.0,67762.0,0.17989272]
[1730751607511,0.005,67763.0,67762.0,0.18589272]
[1730751607695,0.005,67763.0,67762.0,0.27444064]
[1730751607897,0.005,67763.0,67762.0,0.18589272]
[1730751608197,0.001,67763.0,67762.0,0.19089272]
[1730751610805,0.074834,67763.0,67762.0,0.19089272]
[1730751611107,0.001,67763.0,67762.0,0.19089272]
[1730751612310,0.074834,67763.0,67762.0,0.1902088]
[1730751613809,0.074834,67763.0,67762.0,0.084835]
[1730751614101,0.074834,67763.0,67762.0,0.011]
[1730751615903,0.074834,67763.0,67762.0,0.084835]
[1730751616306,0.074834,67763.0,67762.0,0.011]
[1730751622110,0.074834,67763.0,67762.0,0.15854845]
[1730751622299,0.074834,67763.0,67762.0,0.26419182]
[1730751623309,0.074834,67763.0,67762.0,0.19035682]
[1730751623812,0.074834,67763.0,67762.0,0.011]
[1730751624111,0.001,67763.0,67761.0,0.05897976]
[1730751624310,0.073836,67761.0,67754.0,0.07371899]
[1730751624516,0.073836,67761.0,67751.0,0.07371899]
[1730751624517,0.3608,67755.0,67751.0,0.07371899]
[1730751624717,0.20152626,67752.0,67748.0,0.00221369]
[1730751624917,0.434649,67749.0,67748.0,0.00221369]
[1730751626521,0.439649,67749.0,67748.0,0.00221369]
[1730751628018,0.47583407,67749.0,67748.0,0.00221369]
[1730751629017,0.47583407,67749.0,67748.0,0.10820085]
[1730751629217,0.47183407,67749.0,67748.0,0.00621369]
[1730751630322,0.47083407,67749.0,67748.0,0.00221369]
[1730751630517,0.47583407,67749.0,67748.0,0.00221369]
[1730751631109,0.47583407,67749.0,67745.0,0.07364873]
[1730751631311,0.47583407,67749.0,67732.0,0.01033]
[1730751631312,0.073857,67742.0,67740.0,0.07364873]
[1730751631509,0.07386,67739.0,67737.0,0.07364873]
[1730751631813,0.07386,67739.0,67736.0,0.07364873]
[1730751631814,0.0316,67738.0,67736.0,0.07364873]
[1730751632015,0.073862,67737.0,67736.0,0.07364873]
[1730751632219,0.073862,67737.0,67731.0,0.09069997]
[1730751632220,0.47608,67737.0,67732.0,0.07364873]
[1730751632416,0.12768026,67732.0,67731.0,0.07586336]
[1730751632717,0.20154826,67732.0,67731.0,0.07586336]
[1730751633421,0.20154826,67732.0,67731.0,0.00221463]
[1730751633620,0.073877,67724.0,67723.0,0.07364873]
[1730751633823,0.3608,67724.0,67719.0,0.07364873]
[1730751634011,0.073881,67720.0,67719.0,0.07364873]
[1730751634212,0.12768026,67721.0,67717.0,0.07364873]
[1730751634424,0.073883,67718.0,67717.0,0.07364873]
[1730751634725,0.073884,67717.0,67716.0,0.07364873]
[1730751634921,0.3608,67718.0,67716.0,0.18054418]
[1730751635115,0.073884,67717.0,67716.0,0.14739333]
[1730751635311,0.073885,67716.0,67715.0,0.07350833]
[1730751635512,0.073889,67713.0,67712.0,0.07350833]
[1730751635725,0.12768026,67717.0,67711.0,0.07350833]
[1730751635921,0.073891,67711.0,67710.0,0.3608]
[1730751636220,0.073891,67711.0,67705.0,0.04629246]
[1730751636221,0.3608,67711.0,67705.0,0.04629246]
[1730751636422,0.073893,67710.0,67705.0,0.00221525]
[1730751636615,0.073893,67710.0,67709.0,0.073893]
[1730751637921,0.073895,67708.0,67705.0,0.07611125]
[1730751638120,0.3608,67711.0,67706.0,0.073896]
[1730751638121,0.073895,67707.0,67706.0,0.073896]
[1730751638320,0.3608,67711.0,67705.0,0.00221525]
[1730751638321,0.434691,67711.0,67710.0,0.003]
[1730751638632,0.56237126,67711.0,67710.0,0.003]
[1730751638933,0.073896,67707.0,67705.0,0.07611225]
[1730751639113,0.52365815,67711.0,67705.0,0.00221525]
[1730751639114,0.073896,67706.0,67705.0,0.00221525]
[1730751640326,0.074896,67706.0,67705.0,0.08411225]
[1730751640923,0.075896,67706.0,67705.0,0.08411225]
[1730751641327,0.075896,67706.0,67705.0,1.58411225]
[1730751642221,0.075896,67706.0,67705.0,1.51021525]
[1730751642517,0.20357626,67706.0,67705.0,1.51021525]
[1730751643925,0.075896,67706.0,67705.0,1.51021525]
[1730751644119,0.075896,67706.0,67705.0,1.58411225]